Cogmind - Beta 12 @@@ ROGUE MODE // 2023.09.20 @ 17:57:57 Player: DuckBoy Result: Escaped! Performance ------------- Evolutions (9) 4500 Regions Visited (32) 6400 Robots Destroyed (565) 2825 Value Destroyed (21867) 21867 Prototype IDs (45) 900 Alien Tech Used (0) 0 Bonus (12748) 12748 TOTAL SCORE: 49240 Bonus ------- High Alert Combat Kills 774 Follower Combat Kills 3277 Entered Garrisons 1400 Used RIF Installer 4500 Entered DSFs 500 Aligned with FarCom 300 Met R17 at Cetus 500 Win 3000 Friendly Fire -1503 Cogmind --------- Core Integrity 1202/1600 Matter 288/300 Energy 228/230 System Corruption 24% Temperature Cool (4) Movement Hovering (237) Ox2 Location To Epsilon Eridani Parts ------- > --- POWER (3) -------- Light Particle Reactor Micro Antimatter Reactor > --- PROPULSION (6) --- Combat Antigrav System Combat Linear Gravjet > --- UTILITY (13) ----- Advanced Heat Sink Experimental Heat Sink Medium Storage Unit Structural Scanner Advanced Targeting Computer Advanced Transmission Jammer Advanced Phase Shifter Hacking Suite Hacking Suite Advanced Hacking Suite Improved System Shield Authchip [R/Combat] > --- WEAPON (3) ------- Gamma Rifle Enhanced Nova Cannon Enhanced Nova Cannon > --- INVENTORY (10) --- Improved Antigrav System Improved Antigrav System Gamma Rifle Enhanced Quantum Rifle Enhanced Quantum Rifle Enhanced Quantum Rifle Enhanced Quantum Rifle Compact HERF Cannon KE Penetrator Peak State ------------ > --- POWER ------------ Micro Antimatter Reactor Micro Antimatter Reactor Improved Quantum Reactor > --- PROPULSION ------- Improved Antigrav System Improved Antigrav System Improved Antigrav System Improved Linear Gravjet Combat Antigrav System Combat Linear Gravjet > --- UTILITY ---------- Advanced Heat Sink Advanced Heat Sink Experimental Heat Sink Medium Storage Unit Advanced Signal Interpreter Advanced Targeting Computer Advanced Target Analyzer Energy Filter Improved Transmission Jammer Graphene Brace Improved Hacking Suite Improved System Shield Improved System Shield > --- WEAPON ----------- Dispersion Rifle Enhanced Quantum Rifle Nova Cannon > --- INVENTORY -------- Improved Linear Gravjet Particle Accelerator Authchip [R/NC] Authchip [R/Combat] Gamma Rifle Gamma Rifle Gamma Rifle Compact HERF Cannon Force Lance [Rating: 166] Favorites ----------- Power Improved Deuterium Engine Engine Improved Deuterium Engine Power Core Micro Nuclear Core Reactor Light Antimatter Reactor Propulsion Wheel Treads Light Treads Leg Myomer Leg Wheel Wheel Hover Unit Improved Antigrav System Utility Advanced Targeting Computer Device Transmission Jammer Storage High-capacity Storage Unit Processor Advanced Targeting Computer Hackware Hacking Suite Protection Centrium Medium Armor Plating Weapon Heavy Plasma Cannon Energy Gun Advanced Beam Rifle Energy Cannon Heavy Plasma Cannon Ballistic Gun KE Penetrator Ballistic Cannon Mass Driver Launcher Missile Launcher Special Weapon Remote Datajack Piercing Weapon Lance Special Melee Weapon Improved Datajack Build | -11 -10 -10 -9 -9 -9 -8 -8 -8 -8 -8 -7 -7 -7 -6 -6 -6 -6 -5 -5 -4 -4 -4 -4 -4 -3 -2 -2 -2 -2 -1 -1 -1 ------- Run | Jun Mat Min Mat Min Exi Min Mat Gar Mat Gar Fac Gar Fac Fac Was Fac Gar Fac Gar Fac Ext Cet Arc Hub Res Res Gar Res DSF Acc Gar Acc Slots Evolved 18 | . . . 2 . . . 2 . . . 2 . . 2 . . . 2 . 2 . . . . 2 2 . . . 2 . . Power 2 | . . . . . . . . . . . . . . . . . . . . 1 . . . . . 1 . . . . . . Propulsion 4 | . . . 1 . . . . . . . . . . 1 . . . . . . . . . . 1 . . . . 1 . . Utility 11 | . . . . . . . 2 . . . 2 . . 1 . . . 2 . 1 . . . . 1 1 . . . 1 . . Weapon 1 | . . . 1 . . . . . . . . . . . . . . . . . . . . . . . . . . . . . Parts Attached 822 | 6 5 2 27 2 1 . 33 9 24 20 126 22 64 78 5 43 9 29 22 40 16 25 17 27 84 32 . 2 2 6 7 37 Power 60 | 1 . . 4 1 . . 3 . 2 2 10 1 1 4 1 1 . 2 1 5 . 1 1 . 14 3 . . . . . 2 Engine 19 | 1 . . 4 1 . . 3 . 2 . 3 1 1 . . . . 1 . . . . . . 2 . . . . . . . Core 22 | . . . . . . . . . . 2 7 . . 3 . . . . 1 3 . . 1 . 4 1 . . . . . . Reactor 19 | . . . . . . . . . . . . . . 1 1 1 . 1 . 2 . 1 . . 8 2 . . . . . 2 Propulsion 168 | 2 1 2 11 . . . 8 1 9 2 17 5 7 21 1 10 . 1 2 8 1 4 1 11 28 5 . . 1 2 . 7 Treads 50 | 2 1 . 8 . . . 4 . 4 1 8 2 4 8 1 1 . . 2 . . . . . 3 1 . . . . . . Leg 20 | . . . . . . . . . . . . . . 3 . 2 . . . . . 4 1 6 4 . . . . . . . Wheel 69 | . . 2 3 . . . 4 1 5 1 9 3 3 10 . 7 . 1 . 8 1 . . 5 6 . . . . . . . Hover 29 | . . . . . . . . . . . . . . . . . . . . . . . . . 15 4 . . 1 2 . 7 Flight . | . . . . . . . . . . . . . . . . . . . . . . . . . . . . . . . . . Utility 268 | 1 3 . 4 1 . . 6 2 5 6 43 5 22 26 2 18 5 9 12 8 4 4 9 9 27 12 . 2 1 3 6 13 Device 174 | . . . 3 1 . . 3 2 3 5 28 3 15 18 2 14 4 7 8 4 2 2 2 8 16 8 . 2 1 3 1 9 Storage 10 | 1 2 . . . . . 1 . . . . . . 1 . . . . . 1 . . . . 3 . . . . . . 1 Processor 14 | . . . 1 . . . 1 . . 1 3 . . . . 1 . . . 2 . . . . 2 3 . . . . . . Hackware 55 | . . . . . . . 1 . 2 . 10 2 7 7 . 3 1 2 1 . 1 . 6 . 3 1 . . . . 5 3 Protection 15 | . 1 . . . . . . . . . 2 . . . . . . . 3 1 1 2 1 1 3 . . . . . . . Artifact . | . . . . . . . . . . . . . . . . . . . . . . . . . . . . . . . . . Weapon 326 | 2 1 . 8 . 1 . 16 6 8 10 56 11 34 27 1 14 4 17 7 19 11 16 6 7 15 12 . . . 1 1 15 Energy Gun 65 | . 1 . 1 . . . 2 2 . 2 7 1 7 1 . . . 1 1 1 7 6 2 2 9 5 . . . 1 . 6 Energy Cannon 121 | . . . 5 . 1 . 7 2 4 3 22 3 5 13 . 8 2 11 2 9 3 6 1 2 . 4 . . . . 1 7 Ballistic Gun 21 | 2 . . 1 . . . . . . 2 5 1 3 3 . . . . . . . . . . . 3 . . . . . 1 Ballistic Cannon 7 | . . . . . . . . . . . . . . . . . . 1 2 . . . 1 2 1 . . . . . . . Launcher 34 | . . . 1 . . . 7 2 1 3 2 3 4 . . 3 . . . 4 . 2 1 . 1 . . . . . . . Special Weapon 38 | . . . . . . . . . . . 2 2 7 7 1 3 2 4 2 5 1 1 . . . . . . . . . 1 Impact Weapon . | . . . . . . . . . . . . . . . . . . . . . . . . . . . . . . . . . Slashing Weapon . | . . . . . . . . . . . . . . . . . . . . . . . . . . . . . . . . . Piercing Weapon 30 | . . . . . . . . . . . 11 1 8 3 . . . . . . . 1 1 1 4 . . . . . . . Special Melee Weapon 10 | . . . . . . . . . 3 . 7 . . . . . . . . . . . . . . . . . . . . . Unidentified Prototypes 19 | . . . 2 1 . . 1 . . . 3 . 1 . 1 . . 2 1 2 . 1 . . . 4 . . . . . . Corrupted Parts 11 | . . . . . . . . . . . . . 1 . . . . . . . . . . . 10 . . . . . . . System Corruption 83 | . . . . . . . . . . . . . 2 . . . . . . . . . . . 81 . . . . . . . Parts Lost 188 | . 2 . 2 . . . 2 1 3 5 12 3 6 18 . 11 1 2 2 12 4 6 4 23 46 3 . . 2 . 2 16 Power 21 | . . . . . . . 1 . . 1 2 . . 1 . 1 . . 1 . . . 1 2 8 . . . . . . 3 Propulsion 74 | . 1 . 2 . . . . . 2 1 5 2 2 9 . 5 . 1 1 4 1 3 1 10 14 1 . . 1 . . 8 Utility 50 | . . . . . . . . . . . 3 1 . 5 . 4 1 . . 3 1 . 2 5 16 2 . . . . 2 5 Weapon 43 | . 1 . . . . . 1 1 1 3 2 . 4 3 . 1 . 1 . 5 2 3 . 6 8 . . . 1 . . . Highest Loss Streak 20 | . 2 . 1 . . . 1 1 1 3 5 1 2 4 . 6 1 1 2 5 4 2 2 16 20 3 . . 2 . 2 8 To Critical Strikes 1 | . . . 1 . . . . . . . . . . . . . . . . . . . . . . . . . . . . . Average Slot Usage (%) 95 | . 97 100 100 100 100 100 98 99 99 98 98 98 97 96 96 90 88 87 87 92 98 91 95 93 75 95 100 100 97 99 98 95 Engine 3 | . 14 14 11 11 11 11 9 9 8 2 1 4 7 4 . . . . . . . . . . . . . . . . . . Core 2 | . . . . . . . . . . 6 5 2 . . . . . . 3 5 10 5 4 4 2 . . . . . . . Reactor 2 | . . . . . . . . . . . . . . . 6 5 6 4 1 3 . 4 5 4 3 11 13 13 13 12 12 11 Treads 7 | . 27 2 11 11 11 11 9 9 9 9 6 17 7 11 6 2 . . 8 1 . . . . 1 . . . . . . . Leg 1 | . . . . . . . . . . . . . . 1 3 1 . . . . . 4 20 11 . . . . . . . . Wheel 13 | . . 25 21 22 22 22 18 18 17 17 15 4 13 11 13 16 20 16 6 16 20 11 . 5 3 . . . . . . . Hover 1 | . . . . . . . . . . . . . . . . . . . . . . . . . 6 20 21 21 21 24 24 22 Device 11 | . . . 10 11 11 11 8 9 7 8 11 12 5 7 12 17 17 24 24 19 20 17 15 9 13 21 21 21 21 24 22 21 Storage 7 | . 14 14 11 11 11 11 9 9 9 9 7 7 7 6 6 6 6 5 5 8 10 10 9 5 4 4 4 4 4 4 1 2 Processor 12 | . . . . . . . 8 9 9 15 24 23 23 9 6 6 6 5 5 9 10 10 9 5 4 9 13 13 13 12 8 4 Hackware 9 | . . . . . . . 8 9 10 3 1 1 8 19 20 12 11 10 12 11 10 10 9 30 21 11 13 13 13 12 17 21 Energy Gun 2 | . 4 14 . . . . 8 8 9 8 . 2 3 1 . . . . . . 10 5 7 3 2 5 8 8 5 7 7 4 Energy Cannon 12 | . . . 32 33 33 33 18 17 16 6 15 6 5 15 13 15 15 12 8 12 2 4 3 3 . 4 4 4 4 4 4 5 Ballistic Gun 2 | . 23 14 . . . . . . . 8 2 5 3 . . . . . . . . . . . . 1 . . . . . 1 Special Weapon 1 | . . . . . . . . . . . . . 1 1 6 1 3 2 1 1 2 . . . . . . . . . . . Piercing Weapon 1 | . . . . . . . . . . . 1 1 4 . . . . . . . . . . 1 3 . . . . . . . Naked Turns . | . . . . . . . . . . . . . . . . . . . . . . . . . . . . . . . . . Heaviest Build 146 | 14 50 49 62 59 58 58 61 61 57 61 80 72 72 84 82 90 86 90 92 140 124 143 146 101 86 73 71 71 71 74 74 85 Greatest Support 100 | 40 40 40 20 20 20 20 20 20 40 20 66 66 26 80 20 60 60 60 44 58 58 100 100 95 81 73 73 73 73 81 76 76 Greatest Overweight (x) 18 | . 1 2 3 2 2 2 3 3 5 5 5 4 4 8 4 8 1 1 3 7 2 8 1 15 18 1 . . 1 1 . 2 Average Overweight (x) 1 | . . 1 2 2 2 2 2 2 2 2 1 2 2 2 3 2 1 1 1 1 1 2 . . 1 . . . . . . . Largest Inventory Capacity 20 | 8 20 20 20 20 20 20 20 20 20 20 20 20 20 20 20 20 20 20 20 20 20 20 20 20 20 10 10 10 10 10 10 10 Average Capacity 19 | 6 15 20 20 20 20 20 20 20 20 20 20 20 20 20 20 20 20 20 20 20 20 20 20 20 16 10 10 10 10 10 7 8 Most Carried 20 | 6 20 20 20 20 20 20 20 20 20 20 20 20 20 20 20 20 20 20 20 20 20 20 20 20 20 10 10 10 10 10 10 10 Average Carried 17 | 3 9 19 19 19 19 20 19 19 18 19 19 18 18 19 19 18 18 17 19 18 17 18 18 18 10 8 10 10 9 9 6 8 Final Capacity 20 | 8 20 20 20 20 20 20 20 20 20 20 20 20 20 20 20 20 20 20 20 20 20 20 20 20 10 10 10 10 10 10 5 10 Final Carried 20 | 6 20 19 20 20 20 20 19 19 20 20 20 18 20 19 19 19 20 19 20 18 20 18 20 15 5 10 10 10 10 10 5 9 Class Distribution -------------------- 36% | Commander-Mutant 9% | Commander-Gunner 8% | Scavenger-Mutant 7% | Commander-Skirmisher 6% | Skirmisher 5% | Scavenger-Gunner 4% | Scavenger-Skirmisher 4% | Mutant 4% | Bothacker-Mutant Dominant Class ---------------- Mutant | -10/Materials Mutant | -10/Mines Gunner | -9/Materials Scavenger-Skirmisher | -9/Mines Scavenger-Skirmisher | -9/Exiles Scavenger-Skirmisher | -8/Mines Skirmisher | -8/Materials Skirmisher | -8/Garrison Skirmisher | -8/Materials Scavenger-Gunner | -8/Garrison Commander-Mutant | -7/Factory Commander-Mutant | -7/Garrison Commander-Mutant | -7/Factory Commander-Mutant | -6/Factory Commander-Mutant | -6/Waste Commander-Mutant | -6/Factory Commander-Mutant | -6/Garrison Bothacker-Mutant | -5/Factory Scavenger-Mutant | -5/Garrison Botlord-Mutant | -4/Factory Scavenger-Mutant | -4/Extension Scavenger-Mutant | -4/Cetus Scavenger-Mutant | -4/Archives Wizard-Mutant | -4/Hub_04(d) Wizard-Mutant | -3/Research Scavenger-Mutant | -2/Research Scavenger-Mutant | -2/Garrison Scavenger-Mutant | -2/Research Scavenger-Mutant | -2/DSF Scavenger-Mutant | -1/Access Scavenger-Mutant | -1/Garrison Scavenger-Skirmisher | -1/Access Resources | -11 -10 -10 -9 -9 -9 -8 -8 -8 -8 -8 -7 -7 -7 -6 -6 -6 -6 -5 -5 -4 -4 -4 -4 -4 -3 -2 -2 -2 -2 -1 -1 -1 ----------- Run | Jun Mat Min Mat Min Exi Min Mat Gar Mat Gar Fac Gar Fac Fac Was Fac Gar Fac Gar Fac Ext Cet Arc Hub Res Res Gar Res DSF Acc Gar Acc Matter Collected 11765 | 201 422 . 301 20 . 10 503 242 316 370 1513 544 913 1100 215 691 140 400 344 484 290 329 284 277 839 380 . . . . . 637 Remotely . | . . . . . . . . . . . . . . . . . . . . . . . . . . . . . . . . . Salvage Created 25596 | . 723 . 1334 152 . . 1885 224 1404 830 3520 1304 961 2552 736 748 285 530 368 1159 746 677 646 362 2289 726 . . . 46 . 1389 Parts 1357 | . 52 . 87 7 . . 108 8 76 42 165 70 82 130 3 42 7 35 16 62 39 31 28 18 135 33 . . . 3 . 78 Haulers Intercepted 16 | . 2 . 3 . . . 5 . 3 . 1 . . 1 . . . . . 1 . . . . . . . . . . . . Recyclers Shooed 10 | . . . 1 . . . . . . . 2 . . 2 . . . . . 2 1 . . . 1 . . . . . . 1 Parts Field Recycled . | . . . . . . . . . . . . . . . . . . . . . . . . . . . . . . . . . Retrieved Matter . | . . . . . . . . . . . . . . . . . . . . . . . . . . . . . . . . . Parts Self-Destructed . | . . . . . . . . . . . . . . . . . . . . . . . . . . . . . . . . . Prevented . | . . . . . . . . . . . . . . . . . . . . . . . . . . . . . . . . . Kills | -11 -10 -10 -9 -9 -9 -8 -8 -8 -8 -8 -7 -7 -7 -6 -6 -6 -6 -5 -5 -4 -4 -4 -4 -4 -3 -2 -2 -2 -2 -1 -1 -1 ------- Run | Jun Mat Min Mat Min Exi Min Mat Gar Mat Gar Fac Gar Fac Fac Was Fac Gar Fac Gar Fac Ext Cet Arc Hub Res Res Gar Res DSF Acc Gar Acc Combat Hostiles Destroyed 371 | . 13 . 28 3 . . 28 7 22 20 45 33 15 33 3 21 4 7 7 16 9 7 4 4 23 8 . . . . . 11 Melee 17 | . . . . . . . . . . . 2 . 5 . . . . . . . . . . . 10 . . . . . . . Guns 77 | . 13 . . . . . 6 2 9 8 5 11 5 5 . . . . . . 3 1 . 1 1 3 . . . . . 4 Cannons 186 | . . . 27 3 . . 18 2 12 6 28 5 3 23 2 13 4 7 7 9 . . 1 2 2 5 . . . . . 7 AOE 61 | . . . . . . . 4 3 . 6 7 17 2 2 . 8 . . . 6 2 . . . 4 . . . . . . . Classes Destroyed 19 | . 6 . 4 1 . . 1 . 1 . 1 . . 1 1 1 . . 1 . . . . . 1 . . . . . . . Worker 43 | . 2 . 2 . . . 5 . 1 . 6 . 5 7 . 5 . 2 . 1 . . . . 4 . . . . . . 3 Builder 46 | . 1 . . . . . . . 2 . 4 . 5 8 . 4 . . . 3 3 . . 3 9 . . . . . . 4 Tunneler 2 | . . . . . . . . . 1 . . . . 1 . . . . . . . . . . . . . . . . . . Hauler 17 | . 2 . 3 . . . 5 . 3 . 1 . . 1 . . 1 . . 1 . . . . . . . . . . . . Recycler 26 | . . . 1 . . . 1 . 1 . 14 . . 2 . . . . . 2 . . . 1 2 . . . . . . 2 Mechanic 1 | . . . . . . . . . . . . . . . . . . . . . . . . . 1 . . . . . . . Operator 17 | . 1 . 1 . . . 1 . . . 1 1 . . . 1 . . . . . . 9 . . . . . . . . 2 Watcher 46 | . 2 . 4 . . . 5 . 4 . 7 . 6 3 . . . 1 . 1 3 2 . . 1 4 . . . 1 . 2 Swarmer 71 | . . . 11 . . . 6 3 4 4 13 10 4 3 . 1 . . 1 8 3 . . . . . . . . . . . Grunt 110 | . 13 . 9 2 . . 11 3 9 9 13 19 4 9 . . . 2 . 2 . . . 1 4 . . . . . . . Brawler 5 | . . . . 1 . . . . . 1 . . . . . . 3 . . . . . . . . . . . . . . . Duelist 2 | . . . 1 . . . . . . . . . 1 . . . . . . . . . . . . . . . . . . . Sentry 66 | . . . 7 . . . 9 1 8 5 5 4 1 7 . 3 . . 3 . 2 . 4 1 3 1 . . . . . 2 Demolisher 1 | . . . . . . . . . . . . . . 1 . . . . . . . . . . . . . . . . . . Specialist 1 | . . . . . . . . . . . . . . . . . . . 1 . . . . . . . . . . . . . Hunter 28 | . . . . . . . 2 . 1 1 1 . 1 5 . 1 2 . . . 4 2 . . 6 . . . . . . 2 Programmer 72 | . . . . . . . . . . . 13 . 5 8 . 5 . 6 3 6 . . . 2 10 7 . . . . . 7 Compactor 3 | . . . . . . . . . . . . . . . 3 . . . . . . . . . . . . . . . . . Cetus Guard 5 | . . . . . . . . . . . . . . . . . . . . . . 5 . . . . . . . . . . Assembled 12 | . . . . . . . . . . . . . . . . 12 . . . . . . . . . . . . . . . . Thug 1 | . . . . . . . . . . . . . . . . . . . . . . 1 . . . . . . . . . . Butcher 2 | . . . . . . . . . . 1 . . . . . . . . . . 1 . . . . . . . . . . . Best Kill Streak 12 | . 5 . 8 3 . . 6 3 5 9 5 8 7 5 2 12 2 3 3 6 5 5 2 4 10 5 . . . 1 . 5 Combat Bots Only 12 | . 3 . 6 3 . . 4 3 3 9 4 8 3 4 2 12 2 2 3 6 4 4 1 3 5 4 . . . . . 4 Max Kills in Single Turn 5 | . 1 . 2 2 . . 4 2 2 3 4 5 4 2 1 3 1 2 1 3 5 2 1 1 3 2 . . . 1 . 2 Gunslinging 1 | . . . . . . . . . . . . . . . . . . . . . . . . . . . . . . . . 1 Exploded 5 | . . . . . . . 4 2 . 3 4 5 1 2 . 3 . . . 3 2 . . . 2 . . . . . . . Melee 1 | . . . . . . . . . . . 1 . 1 . . . . . . . . . . . 1 . . . . . . . Uniques/NPCs Destroyed . | . . . . . . . . . . . . . . . . . . . . . . . . . . . . . . . . . Combat | -11 -10 -10 -9 -9 -9 -8 -8 -8 -8 -8 -7 -7 -7 -6 -6 -6 -6 -5 -5 -4 -4 -4 -4 -4 -3 -2 -2 -2 -2 -1 -1 -1 -------- Run | Jun Mat Min Mat Min Exi Min Mat Gar Mat Gar Fac Gar Fac Fac Was Fac Gar Fac Gar Fac Ext Cet Arc Hub Res Res Gar Res DSF Acc Gar Acc Damage Taken 27631 | . 578 . 809 20 . . 878 189 594 522 2113 605 945 3325 . 1527 136 188 773 1061 499 1656 352 2185 5855 564 . . 182 . 253 1822 Core 4085 | . 102 . 116 . . . 195 52 84 22 286 76 164 539 . 290 13 97 63 105 98 165 58 416 654 48 . . 44 . 94 304 Absorbed by Shields 697 | . . . . . . . . 20 . 63 . 236 15 68 . . . . 212 . . . . . . . . . . . . 83 Redirected to Shielding 6 | . 6 . . . . . . . . . . . . . . . . . . . . . . . . . . . . . . . Regen/Repaired (Parts) 1727 | . . . . . . . 141 . 149 . 394 . 202 369 . 371 . . . 101 . . . . . . . . . . . . Core Remaining (%) 56 | 100 . 59 . . . 71 . . . 35 . . 24 . . . . . 84 . . . . 26 49 . . . 93 . . 75 Volleys Fired 1507 | . 63 1 64 3 . . 85 31 66 48 160 51 76 148 23 100 50 43 56 68 49 28 51 32 47 39 3 . 6 9 18 89 Largest 3 | . 2 2 3 3 . . 3 3 3 3 3 3 3 3 2 3 2 3 3 3 3 3 3 3 3 3 2 . 1 2 3 3 Hottest 298 | . 60 60 204 204 . . 204 197 197 197 195 153 171 270 180 270 180 278 270 278 205 297 280 280 225 220 185 . 113 201 266 298 Shots Fired 3153 | . 125 2 185 9 . . 215 63 196 107 365 120 125 330 31 186 85 65 92 134 77 58 98 58 92 69 6 . 5 18 32 205 Gun 908 | . 125 2 . . . . 59 26 65 51 57 66 53 25 . 3 . . . 2 43 19 52 9 73 40 3 . . 9 16 110 Cannon 2035 | . . . 184 9 . . 136 33 130 47 298 37 49 289 17 170 74 46 87 113 24 32 46 49 8 29 3 . 5 9 16 95 Launcher 86 | . . . 1 . . . 20 4 1 9 2 12 7 . . 9 . . . 6 . 4 . . 11 . . . . . . . Special 124 | . . . . . . . . . . . 8 5 16 16 14 4 11 19 5 13 10 3 . . . . . . . . . . Kinetic 356 | . 113 1 . . . . . . . 18 47 37 31 21 . . . . 14 . . . 12 18 8 13 . . . . . 23 Thermal 2339 | . 12 1 184 9 . . 195 59 195 68 298 37 52 293 17 173 74 46 73 113 24 42 65 40 2 48 6 . 5 18 32 158 Explosive 68 | . . . 1 . . . 20 4 1 9 2 12 7 . . 9 . . . 3 . . . . . . . . . . . . Electromagnetic 266 | . . . . . . . . . . 12 10 29 19 . . . . . . 5 43 13 21 . 82 8 . . . . . 24 Robot Hit Streak 60 | . 9 5 14 6 . . 35 44 15 14 60 16 17 24 10 22 13 14 36 20 9 20 21 23 12 8 . . . 10 . 24 Robot Miss Streak 6 | . 5 . 5 1 . . 3 1 2 2 3 2 2 4 1 6 3 2 4 3 3 2 2 3 3 3 . . . 3 . 4 Penetration Max 1 | . . . . . . . . . . 1 . 1 1 1 . . . . . . . . . . . . . . . . . 1 Secondary Targets 5 | . 1 . . . . . . . . 2 . . . . . . . . . . 1 . . . . . . . . . . 1 Max Gunslinging Chain 1 | . 1 . . . . . . . . 1 . . . . . . . . . . 1 . . . . . . . . . . 1 Shots Hit Robots 1875 | . 74 2 85 6 . . 126 24 128 60 246 83 90 175 26 79 30 38 46 77 41 48 77 36 114 36 . . . 8 . 120 Core Hits 836 | . 41 . 40 3 . . 62 11 46 34 101 68 42 71 3 36 6 11 16 31 20 20 29 12 68 13 . . . 3 . 49 Critical Kills 16 | . 2 . 1 . . . . . . . 3 1 . 5 1 . . . . 1 . 1 . . . 1 . . . . . . Critical Parts Destroyed 6 | . . . . . . . . . . . 2 1 2 . . . . . . . . . . . . . . . . 1 . . Critical Strikes 55 | . 2 . 1 . . . 2 3 9 2 6 2 3 5 1 . . . 3 1 . 1 2 2 7 2 . . . 1 . . Burn 18 | . . . . . . . 2 3 9 2 . . . . . . . . . . . . . 1 . 1 . . . . . . Meltdown 12 | . . . 1 . . . . . . . 3 . . 5 1 . . . . 1 . 1 . . . . . . . . . . Destroy 10 | . 2 . . . . . . . . . 2 2 2 . . . . . . . . . . . . 1 . . . 1 . . Blast 7 | . . . . . . . . . . . . . . . . . . . 3 . . . 2 1 1 . . . . . . . Impale 8 | . . . . . . . . . . . 1 . 1 . . . . . . . . . . . 6 . . . . . . . Melee Attacks 184 | . . . . . . . . . 6 . 48 3 53 13 . . . . . . . 2 . 2 57 . . . . . . . Impact . | . . . . . . . . . . . . . . . . . . . . . . . . . . . . . . . . . Slashing . | . . . . . . . . . . . . . . . . . . . . . . . . . . . . . . . . . Piercing 160 | . . . . . . . . . . . 30 3 53 13 . . . . . . . 2 . 2 57 . . . . . . . Sneak Attacks 37 | . . . . . . . . . 6 . 19 . 2 1 . . . . . . . . . . 9 . . . . . . . Combat Hostiles 2 | . . . . . . . . . . . 2 . . . . . . . . . . . . . . . . . . . . . Follow-up Attacks . | . . . . . . . . . . . . . . . . . . . . . . . . . . . . . . . . . Damage Inflicted 58408 | . 936 24 1912 144 . . 2836 699 2628 1551 6791 3045 2613 6250 510 3428 760 854 1964 3091 1470 1824 2220 1235 5464 1708 . . . 264 . 4187 Guns 14609 | . 919 24 . . . . 1000 180 980 590 1009 1042 895 440 . . . . . 52 900 477 1115 214 1219 959 . . . 108 . 2486 Cannons 32562 | . . . 1912 144 . . 1699 292 1636 512 4850 537 635 5092 510 2554 760 854 1964 2441 160 870 1105 987 442 749 . . . 156 . 1701 Explosions 7955 | . . . . . . . 137 227 . 449 454 1466 626 617 . 874 . . . 595 410 477 . . 1623 . . . . . . . Melee 3194 | . . . . . . . . . . . 473 . 457 84 . . . . . . . . . . 2180 . . . . . . . Ramming 88 | . 17 . . . . . . . 12 . 5 . . 17 . . . . . 3 . . . 34 . . . . . . . . Kinetic 6204 | . 865 13 . . . . . . . 202 879 620 518 386 . . . . 832 . . . 342 453 442 242 . . . . . 410 Thermal 38521 | . 54 11 1912 144 . . 2699 472 2616 915 4974 589 898 5763 510 2554 760 854 1132 2478 570 1088 1468 748 329 1220 . . . 264 . 3499 Explosive 4032 | . . . . . . . 137 227 . 346 330 1414 412 . . 874 . . . 292 . . . . . . . . . . . . Electromagnetic 6369 | . . . . . . . . . . 88 130 422 328 . . . . . . 318 900 736 410 . 2513 246 . . . . . 278 Impact . | . . . . . . . . . . . . . . . . . . . . . . . . . . . . . . . . . Slashing . | . . . . . . . . . . . . . . . . . . . . . . . . . . . . . . . . . Piercing 3194 | . . . . . . . . . . . 473 . 457 84 . . . . . . . . . . 2180 . . . . . . . Highest Corruption 98 | . . . . . . . 2 2 2 2 3 . 2 12 29 29 . 1 2 3 7 8 8 3 98 5 5 5 5 1 11 24 Average Corruption 6 | . . . . . . . 2 2 2 2 1 . 1 8 17 8 . 1 1 3 5 7 6 2 32 4 5 5 5 1 6 18 Corruption Purged 82 | . . . . . . . . . . . 9 . 3 16 . 40 . . . . . . 8 . 6 . . . . . . . Corruption Blocked 8 | . . . . . . . . . . . . . 8 . . . . . . . . . . . . . . . . . . . Effects 538 | . . . . . . . 19 4 18 23 22 . 2 119 25 94 . 10 8 11 21 15 26 6 32 7 2 . 3 2 2 67 Message Errors 130 | . . . . . . . 4 1 4 6 4 . . 30 3 22 . 4 3 4 7 3 7 1 6 2 2 . 1 . 1 15 Matter Fused 127 | . . . . . . . 2 . 10 3 6 . . 33 9 22 . 1 1 3 3 7 7 2 6 1 . . . . . 11 Heat Flow Errors 64 | . . . . . . . 4 . 1 2 3 . . 11 2 11 . 3 1 2 3 1 . . 6 3 . . 1 . . 10 Energy Discharges 60 | . . . . . . . 2 . 1 . 2 . . 15 5 14 . . 1 . 1 1 1 1 5 . . . . 1 1 9 Parts Rejected 4 | . . . . . . . . . . 1 . . . . . . . . . . . 1 . . 2 . . . . . . . Parts Fused 4 | . . . . . . . . . . 1 . . . 1 . 1 . . . . . . . . . . . . . . . 1 Data Loss (minor) 65 | . . . . . . . 4 3 . 5 1 . 2 11 2 12 . . 1 1 6 1 4 1 4 1 . . . 1 . 5 Data Loss (major) 25 | . . . . . . . . . . 3 2 . . 6 1 5 . 1 . . . 1 . 1 . . . . . . . 5 Misfires 21 | . . . . . . . . . . 2 3 . . 3 1 5 . 1 1 1 . . 1 . 1 . . . . . . 2 Alerts 12 | . . . . . . . 1 . 2 . 1 . . 5 . 2 . . . . . . 1 . . . . . . . . . Misdirections 4 | . . . . . . . . . . . . . . . . . . . . . . . . . 1 . . . . . . 3 Weapon Failures 22 | . . . . . . . 2 . . . . . . 4 2 . . . . . 1 . 5 . 1 . . . 1 . . 6 Overload Shots 16 | . . . . . . . . . . . . . . . . . . . . . . . . . . 13 3 . . . . . Effects 1 | . . . . . . . . . . . . . . . . . . . . . . . . . . 1 . . . . . . Heat Surge 1 | . . . . . . . . . . . . . . . . . . . . . . . . . . 1 . . . . . . Overflow Damage 2192 | . . . 12 2 . . 13 46 41 . 234 30 194 127 . 331 98 51 66 178 3 35 32 28 467 93 . . . 6 . 105 Projectiles 1216 | . . . 12 2 . . 13 . 41 . 170 3 12 82 . 174 98 51 66 173 3 35 32 28 17 93 . . . 6 . 105 Explosions 501 | . . . . . . . . 46 . . 48 27 149 45 . 157 . . . 5 . . . . 24 . . . . . . . Melee 475 | . . . . . . . . . . . 16 . 33 . . . . . . . . . . . 426 . . . . . . . Knockbacks 22 | . . . . . . . . . . . . . . . . . . . 11 . . . . 3 8 . . . . . . . Impact . | . . . . . . . . . . . . . . . . . . . . . . . . . . . . . . . . . Kinetic 18 | . . . . . . . . . . . . . . . . . . . 7 . . . . 3 8 . . . . . . . Secondary 4 | . . . . . . . . . . . . . . . . . . . 4 . . . . . . . . . . . . . Self-Inflicted Damage 638 | . . . . . . . . 5 25 30 52 122 . . . 105 . . . . 63 . . 11 225 . . . . . . . Shots 20 | . . . . . . . . 1 1 1 1 3 . . . 3 . . . . 1 . . . 9 . . . . . . . Rammed 14 | . 4 . . . . . . . 1 . 2 . . 3 . . . . . 1 . . . 3 . . . . . . . . Targets Rammed 17 | . 4 . . . . . . . 1 . 2 . . 3 . . . . . 1 . . . 6 . . . . . . . . Kicked 3 | . . . . . . . . . . . . . . . . . . . . . . . . 3 . . . . . . . . Crushed . | . . . . . . . . . . . . . . . . . . . . . . . . . . . . . . . . . Highest Temperature 450 | . 87 . 327 135 . . 226 183 249 328 228 15 378 450 126 330 255 245 297 412 184 191 196 396 279 330 . . 137 . 174 288 Average Temperature 86 | . 33 . 107 57 . . 63 69 65 92 54 4 76 112 44 87 83 73 82 103 88 83 85 115 82 124 . . 95 . 86 64 Received Heat Transfer 3998 | . 354 . 198 . . . 405 84 243 149 471 175 125 635 . 62 . 39 112 90 . . 18 418 402 . . . . . . 18 Effects 17 | . . . . . . . . . . 1 . . . 9 . 2 . . . . . . . 1 . 4 . . . . . . Shutdowns 2 | . . . . . . . . . . . . . . . . . . . . . . . . 1 . 1 . . . . . . Energy Bleed 5 | . . . . . . . . . . 1 . . . 4 . . . . . . . . . . . . . . . . . . Interference 10 | . . . . . . . . . . . . . . 5 . 2 . . . . . . . . . 3 . . . . . . Siege Activations . | . . . . . . . . . . . . . . . . . . . . . . . . . . . . . . . . . Robots Corrupted 19 | . . . . . . . . . . . . . 1 . . . . . . . 4 5 2 . 6 1 . . . . . . Combat Hostiles 17 | . . . . . . . . . . . . . . . . . . . . . 4 5 2 . 6 . . . . . . . Parts Fried 41 | . . . . . . . . . . . 1 1 4 1 . . . . 1 1 12 3 3 . 11 . . . . . . 3 Impact Corruptions . | . . . . . . . . . . . . . . . . . . . . . . . . . . . . . . . . . Robots Melted 15 | . . . 1 . . . . . 1 . 3 . . 5 1 . . . . 1 . 1 1 1 . . . . . . . . Combat Hostiles 13 | . . . 1 . . . . . 1 . 3 . . 3 1 . . . . 1 . 1 1 1 . . . . . . . . Parts Melted 125 | . . . 4 . . . 14 3 11 3 20 . 2 21 1 9 . 6 3 7 . 1 5 1 1 4 . . . . . 9 Heat Transferred 54647 | . 125 25 3441 259 . . 5069 1054 5439 1778 6329 720 988 8060 800 3675 1000 1000 1550 3200 350 1388 1961 1157 324 1292 . . . 296 . 3367 Parts Sabotaged . | . . . . . . . . . . . . . . . . . . . . . . . . . . . . . . . . . Parts Stolen . | . . . . . . . . . . . . . . . . . . . . . . . . . . . . . . . . . Parts Stripped . | . . . . . . . . . . . . . . . . . . . . . . . . . . . . . . . . . Power Chain Reactions 7 | . . . . . . . . . . 1 1 1 . . . . . . . 1 . . . . 3 . . . . . . . Missiles Intercepted . | . . . . . . . . . . . . . . . . . . . . . . . . . . . . . . . . . Alert | -11 -10 -10 -9 -9 -9 -8 -8 -8 -8 -8 -7 -7 -7 -6 -6 -6 -6 -5 -5 -4 -4 -4 -4 -4 -3 -2 -2 -2 -2 -1 -1 -1 ------- Run | Jun Mat Min Mat Min Exi Min Mat Gar Mat Gar Fac Gar Fac Fac Was Fac Gar Fac Gar Fac Ext Cet Arc Hub Res Res Gar Res DSF Acc Gar Acc Peak Influence 1208 | . 202 . 336 338 . . 325 442 378 740 437 1208 634 525 181 306 270 133 236 286 380 108 163 90 129 318 263 147 9 58 113 252 Initial 634 | . . . . 106 . . . 190 215 96 378 305 634 295 181 . 214 117 80 123 106 39 41 3 . 22 201 147 . 1 46 59 Average 191 | . 47 . 166 168 . . 180 328 164 394 244 830 146 240 121 73 218 74 165 148 195 94 61 24 29 120 218 119 2 43 91 113 Maximum Alert Level 4 | . 1 . 1 1 . . 1 2 1 3 2 4 2 2 . 1 1 . 1 1 1 . . . . 1 1 . . . . 1 Low Security (%) 62 | 100 99 100 62 84 . 100 63 23 67 32 38 . 71 50 100 77 . 100 75 66 60 100 100 100 100 72 . 100 100 100 100 96 Level 1 26 | . . . 37 15 . . 36 33 32 6 54 8 26 19 . 22 100 . 24 33 39 . . . . 27 100 . . . . 3 Level 2 8 | . . . . . . . . 43 . 54 6 22 2 29 . . . . . . . . . . . . . . . . . . Level 3 2 | . . . . . . . . . . 6 . 64 . . . . . . . . . . . . . . . . . . . . Level 4 . | . . . . . . . . . . . . 4 . . . . . . . . . . . . . . . . . . . . Level 5 . | . . . . . . . . . . . . . . . . . . . . . . . . . . . . . . . . . High Security . | . . . . . . . . . . . . . . . . . . . . . . . . . . . . . . . . . Max Security . | . . . . . . . . . . . . . . . . . . . . . . . . . . . . . . . . . Squads Dispatched 117 | . 2 . 1 . . . 3 . 4 . 31 . 19 21 . 5 . 4 . 5 . . . 6 7 3 . . . 1 . 5 Investigation 25 | . 1 . . . . . . . 1 . 9 . 4 4 . . . 1 . . . . . 3 . 1 . . . 1 . . Extermination 48 | . . . . . . . . . . . 11 . 8 7 . 4 . 3 . 4 . . . 1 4 2 . . . . . 4 Reinforcement 23 | . 1 . 1 . . . 2 . 3 . 2 . 4 2 . 1 . . . 1 . . . 2 3 . . . . . . 1 Assault 2 | . . . . . . . . . . . . . . 2 . . . . . . . . . . . . . . . . . . Garrison 19 | . . . . . . . 1 . . . 9 . 3 6 . . . . . . . . . . . . . . . . . . Intercept . | . . . . . . . . . . . . . . . . . . . . . . . . . . . . . . . . . Searches Triggered . | . . . . . . . . . . . . . . . . . . . . . . . . . . . . . . . . . Construction Impeded 2 | . . . . . . . . . 1 . . . . . . . . . . . . . . . 1 . . . . . . . Haulers Reinforced 4 | . . . . . . . . . . . 1 . . 1 . . . . . 1 . . . . 1 . . . . . . . Active Scanning Responses . | . . . . . . . . . . . . . . . . . . . . . . . . . . . . . . . . . Cargo Convoy Interrupts 1 | . . . . . . . . . . . . . 1 . . . . . . . . . . . . . . . . . . . Stealth | -11 -10 -10 -9 -9 -9 -8 -8 -8 -8 -8 -7 -7 -7 -6 -6 -6 -6 -5 -5 -4 -4 -4 -4 -4 -3 -2 -2 -2 -2 -1 -1 -1 --------- Run | Jun Mat Min Mat Min Exi Min Mat Gar Mat Gar Fac Gar Fac Fac Was Fac Gar Fac Gar Fac Ext Cet Arc Hub Res Res Gar Res DSF Acc Gar Acc Distress Signals 28 | . 2 . . . . . 6 . 4 . . . 3 1 . . . 1 1 2 . . 2 . 2 3 . . . . . 1 Communications Jammed 103 | . . . . . . . . . . . 4 . . 1 . 2 . 11 . . 4 44 . 1 34 . . . . . . 2 Distress Signals 99 | . . . . . . . . . . . 2 . . 1 . 1 . 11 . . 4 44 . 1 34 . . . . . . 1 Times Spotted 602 | . 23 . 36 6 . . 37 8 37 21 59 28 41 56 4 32 13 18 18 27 12 18 10 16 32 23 . . 1 3 . 23 Peak Tracking Total 11 | . 4 . 5 3 . . 5 5 5 7 4 9 5 4 1 6 11 5 6 6 4 5 1 7 8 11 6 . 1 3 . 6 Tactical Retreats 19 | . . . 1 . . . . 1 2 . . . . . . . 1 . 1 1 . 2 3 2 2 1 1 . . . . 1 Traps | -11 -10 -10 -9 -9 -9 -8 -8 -8 -8 -8 -7 -7 -7 -6 -6 -6 -6 -5 -5 -4 -4 -4 -4 -4 -3 -2 -2 -2 -2 -1 -1 -1 ------- Run | Jun Mat Min Mat Min Exi Min Mat Gar Mat Gar Fac Gar Fac Fac Was Fac Gar Fac Gar Fac Ext Cet Arc Hub Res Res Gar Res DSF Acc Gar Acc Traps Triggered 52 | . 1 . . . . . 1 3 1 6 4 8 2 3 . 7 . 3 2 1 4 . . 2 2 . 1 . . 1 . . Indirectly 1 | . . . . . . . . . . . . . . . . . . . . . . . . . 1 . . . . . . . Trap Hack Attempts 42 | . . . . . . . . . . . 42 . . . . . . . . . . . . . . . . . . . . . Triggered . | . . . . . . . . . . . . . . . . . . . . . . . . . . . . . . . . . Disarmed . | . . . . . . . . . . . . . . . . . . . . . . . . . . . . . . . . . Reprogrammed 4 | . . . . . . . . . . . 3 . . . . . . . . . . . . 1 . . . . . . . . Reused . | . . . . . . . . . . . . . . . . . . . . . . . . . . . . . . . . . Traps Extracted . | . . . . . . . . . . . . . . . . . . . . . . . . . . . . . . . . . Installed . | . . . . . . . . . . . . . . . . . . . . . . . . . . . . . . . . . Triggered 1 | . . . . . . . . . . . . . 1 . . . . . . . . . . . . . . . . . . . Machines | -11 -10 -10 -9 -9 -9 -8 -8 -8 -8 -8 -7 -7 -7 -6 -6 -6 -6 -5 -5 -4 -4 -4 -4 -4 -3 -2 -2 -2 -2 -1 -1 -1 ---------- Run | Jun Mat Min Mat Min Exi Min Mat Gar Mat Gar Fac Gar Fac Fac Was Fac Gar Fac Gar Fac Ext Cet Arc Hub Res Res Gar Res DSF Acc Gar Acc Machines Disabled 70 | . . . 4 . . . 5 1 5 1 10 6 12 6 . 3 . 2 . 2 1 1 4 . . 2 . . . . 2 3 Max in Single Turn 5 | . . . 1 . . . 1 1 2 . 1 2 5 2 . 1 . 1 . 1 1 1 1 . . 1 . . . . 1 1 Garrison Access 10 | . . . . . . . . . . . 2 . 2 3 . 3 . . . . . . . . . . . . . . . . Garrison Relay 5 | . . . . . . . . 1 . . . 2 . . . . . . 1 . . . . . . . . . . . 1 . Energy Cycler 1 | . . . . . . . . . . . . . . . . . . . . . 1 . . . . . . . . . . . Machines Repaired . | . . . . . . . . . . . . . . . . . . . . . . . . . . . . . . . . . Machines Sabotaged . | . . . . . . . . . . . . . . . . . . . . . . . . . . . . . . . . . Overloaded Fab Kills . | . . . . . . . . . . . . . . . . . . . . . . . . . . . . . . . . . Hacking | -11 -10 -10 -9 -9 -9 -8 -8 -8 -8 -8 -7 -7 -7 -6 -6 -6 -6 -5 -5 -4 -4 -4 -4 -4 -3 -2 -2 -2 -2 -1 -1 -1 --------- Run | Jun Mat Min Mat Min Exi Min Mat Gar Mat Gar Fac Gar Fac Fac Was Fac Gar Fac Gar Fac Ext Cet Arc Hub Res Res Gar Res DSF Acc Gar Acc Machines Accessed 198 | . 7 . 5 1 2 . 13 2 12 2 38 2 26 20 . 26 . 4 . 9 6 3 . 5 2 7 1 2 . 2 1 . Terminals 129 | . 6 . 5 . . . 10 2 8 2 17 2 15 13 . 16 . . . 8 6 3 . 5 2 5 1 2 . . 1 . Fabricators 13 | . . . . . . . . . . . 6 . 4 2 . 1 . . . . . . . . . . . . . . . . Repair Stations 13 | . . . . . . . 1 . 2 . 4 . 1 . . 2 . 1 . 1 . . . . . . . . . 1 . . Recycling Units 12 | . 1 . . . . . . . . . 3 . 3 2 . 2 . 1 . . . . . . . . . . . . . . Scanalyzers 11 | . . . . . . . 1 . 1 . 4 . 1 1 . 1 . 1 . . . . . . . 1 . . . . . . Garrison Access 17 | . . . . . . . 1 . 1 . 4 . 2 2 . 4 . 1 . . . . . . . 1 . . . 1 . . Total Hacks 588 | . 19 . 9 1 2 . 38 4 39 3 109 3 84 55 . 67 . 13 . 24 8 8 . 41 10 33 2 7 . 6 3 . Successful 295 | . 5 . 3 1 2 . 20 1 20 2 53 2 53 30 . 39 . 8 . 11 7 2 . 14 1 14 1 2 . 3 1 . Failed 290 | . 13 . 6 . . . 18 3 19 1 55 1 31 24 . 28 . 5 . 13 1 6 . 27 9 19 1 5 . 3 2 . Catastrophic 53 | . 4 . 2 . . . 7 1 5 . 3 . 7 4 . 5 . 1 . 1 . 1 . 2 3 6 . . . . 1 . Database Lockouts 3 | . 1 . . . . . . . . . 1 . . 1 . . . . . . . . . . . . . . . . . . Manual 330 | . 16 . 6 . 1 . 25 . 22 . 66 . 45 34 . 44 . 7 . 19 4 . . 20 5 13 . 3 . . . . Terminals 394 | . 18 . 9 . . . 27 4 27 3 43 3 46 40 . 47 . . . 22 8 8 . 41 10 26 2 7 . . 3 . Fabricators 43 | . . . . . . . . . . . 20 . 17 5 . 1 . . . . . . . . . . . . . . . . Repair Stations 40 | . . . . . . . 5 . 7 . 13 . 5 . . 3 . 1 . 2 . . . . . . . . . 4 . . Recycling Units 30 | . 1 . . . . . . . . . 7 . 8 4 . 5 . 5 . . . . . . . . . . . . . . Scanalyzers 39 | . . . . . . . 5 . 2 . 12 . 6 1 . 4 . 4 . . . . . . . 5 . . . . . . Garrison Access 39 | . . . . . . . 1 . 3 . 14 . 2 5 . 7 . 3 . . . . . . . 2 . . . 2 . . Terminal Hacks 97 | . 2 . 2 1 2 . 6 1 6 2 6 2 12 13 . 15 . . . 4 4 2 . 8 . 5 1 2 . . 1 . Record 4 | . . . . . 1 . . . . . . . . . . . . . . . . 2 . . . 1 . . . . . . Part Schematic 6 | . . . . . . . . . . . . . . . . 3 . . . 2 . . . 1 . . . . . . . . Robot Schematic 10 | . 1 . . . . . 1 . . . 1 . 1 2 . 3 . . . . . . . 1 . . . . . . . . Robot Analysis 1 | . . . . . . . . . . . . . . . . . . . . . . . . . . 1 . . . . . . Prototype ID Bank 1 | . . . . . . . . . . . . . . 1 . . . . . . . . . . . . . . . . . . Open Door 4 | . . . . 1 . . . . . 1 . . . . . . . . . . 2 . . . . . . . . . . . Open DSF 1 | . . . . . . . . . . . . . . . . . . . . . . . . . . . . 1 . . . . Level Access Points 1 | . . . . . . . . . . . . . . . . . . . . . . . . 1 . . . . . . . . Branch Access Points 4 | . . . . . . . 1 . 1 . . . . . . 1 . . . 1 . . . . . . . . . . . . Emergency Access Points 2 | . . . . . . . . . . . . 1 . . . . . . . . . . . . . . 1 . . . . . Machine Index 1 | . . . . . . . . . . . . . . 1 . . . . . . . . . . . . . . . . . . Terminal Index 9 | . . . . . . . 1 . 1 . 1 . 1 1 . 1 . . . 1 . . . 1 . 1 . . . . . . Fabricator Index 4 | . . . . . . . . . . . 1 . . . . 2 . . . . . . . . . 1 . . . . . . Garrison Index 3 | . . . . . . . . . . . . . 1 1 . 1 . . . . . . . . . . . . . . . . Unreport Threat 21 | . 1 . 2 . . . 2 . 3 . 2 . 4 5 . . . . . . 1 . . . . . . 1 . . . . Locate Traps 3 | . . . . . . . . . 1 . . . . 1 . . . . . . . . . . . 1 . . . . . . Reprogram Traps 1 | . . . . . . . . . . . . . . . . . . . . . . . . 1 . . . . . . . . Patrol Status 1 | . . . . . . . . . . . . . . . . 1 . . . . . . . . . . . . . . . . Transport Status 2 | . . . . . . . . . . . . . 1 . . 1 . . . . . . . . . . . . . . . . Investigation Status 1 | . . . . . . . . . . . . . 1 . . . . . . . . . . . . . . . . . . . Recall Investigation 3 | . . . . . . . . . . . . . 1 . . . . . . . . . . 2 . . . . . . . . Recall Reinforcements 1 | . . . . . . . . . . . . . . . . . . . . . . . . 1 . . . . . . . . Hauler Manifests 5 | . . . . . . . . . . . 1 . 1 1 . 1 . . . . 1 . . . . . . . . . . . Registered Prototypes 1 | . . . . . . . . . . . . . . . . 1 . . . . . . . . . . . . . . . . Zone Layout 2 | . . . . . . . 1 . . . . . 1 . . . . . . . . . . . . . . . . . . . Garrison Registry 3 | . . . . . . . . 1 . 1 . . . . . . . . . . . . . . . . . . . . 1 . Security Stations 1 | . . . . . . . . . . . . 1 . . . . . . . . . . . . . . . . . . . . EX-Prototype ID Bank 1 | . . . . . 1 . . . . . . . . . . . . . . . . . . . . . . . . . . . Fabricator Hacks 20 | . . . . . . . . . . . 9 . 9 2 . . . . . . . . . . . . . . . . . . Load Schematic 14 | . . . . . . . . . . . 7 . 6 1 . . . . . . . . . . . . . . . . . . Build 6 | . . . . . . . . . . . 2 . 3 1 . . . . . . . . . . . . . . . . . . Repair Station Hacks 24 | . . . . . . . 4 . 5 . 6 . 4 . . 2 . . . 2 . . . . . . . . . 1 . . Scan Component 13 | . . . . . . . 2 . 3 . 3 . 2 . . 1 . . . 1 . . . . . . . . . 1 . . Repair 11 | . . . . . . . 2 . 2 . 3 . 2 . . 1 . . . 1 . . . . . . . . . . . . Recycling Unit Hacks 2 | . 1 . . . . . . . . . . . . 1 . . . . . . . . . . . . . . . . . . Retrieve Components 2 | . 1 . . . . . . . . . . . . 1 . . . . . . . . . . . . . . . . . . Scanalyzer 26 | . . . . . . . 5 . 1 . 8 . 6 . . 2 . 3 . . . . . . . 1 . . . . . . Insert Component 14 | . . . . . . . 2 . 1 . 5 . 2 . . 1 . 2 . . . . . . . 1 . . . . . . Analyze 12 | . . . . . . . 3 . . . 3 . 4 . . 1 . 1 . . . . . . . . . . . . . . Garrison Access Hacks 23 | . . . . . . . 1 . 2 . 4 . 2 3 . 6 . 1 . . . . . . . 2 . . . 2 . . Unlock Access 8 | . . . . . . . 1 . 1 . 1 . . 1 . 1 . 1 . . . . . . . 1 . . . 1 . . Seal Access 8 | . . . . . . . . . . . 2 . 2 1 . 3 . . . . . . . . . . . . . . . . Coupler Status 7 | . . . . . . . . . 1 . 1 . . 1 . 2 . . . . . . . . . 1 . . . 1 . . Unauthorized Hacks 103 | . 2 . 1 . . . 4 . 6 . 20 . 20 11 . 14 . 4 . 5 3 . . 6 1 6 . . . . . . Terminals 63 | . 2 . 1 . . . 4 . 4 . 9 . 8 6 . 8 . . . 5 3 . . 6 1 6 . . . . . . Track 1 | . . . . . . . . . . . . . . . . . . . . . . . . . . 1 . . . . . . Assimilate 16 | . . . . . . . 2 . . . 4 . 4 2 . 2 . . . 2 . . . . . . . . . . . . Botnet 33 | . 1 . 1 . . . 2 . 3 . 4 . 3 3 . 5 . . . 3 3 . . 1 1 3 . . . . . . Detonate 1 | . . . . . . . . . . . . . . . . . . . . . . . . 1 . . . . . . . . Disrupt 1 | . . . . . . . . . . . . . . . . . . . . . . . . 1 . . . . . . . . Operators 8 | . 1 . . . . . . . 1 . 1 . 1 1 . 1 . . . . . . . . . 2 . . . . . . Sabotage 3 | . . . . . . . . . . . . . . . . . . . . . . . . 3 . . . . . . . . Fabricators 13 | . . . . . . . . . . . 2 . 7 3 . 1 . . . . . . . . . . . . . . . . Report 2 | . . . . . . . . . . . . . 1 1 . . . . . . . . . . . . . . . . . . Liberate 2 | . . . . . . . . . . . . . 1 . . 1 . . . . . . . . . . . . . . . . Fabnet 2 | . . . . . . . . . . . . . 1 1 . . . . . . . . . . . . . . . . . . Haulers 2 | . . . . . . . . . . . . . 1 1 . . . . . . . . . . . . . . . . . . Recompile 5 | . . . . . . . . . . . 2 . 3 . . . . . . . . . . . . . . . . . . . Repair Stations 6 | . . . . . . . . . 1 . 3 . 1 . . 1 . . . . . . . . . . . . . . . . Mechanics 6 | . . . . . . . . . 1 . 3 . 1 . . 1 . . . . . . . . . . . . . . . . Recycling Units 14 | . . . . . . . . . . . 3 . 4 1 . 3 . 3 . . . . . . . . . . . . . . Monitor 1 | . . . . . . . . . . . . . 1 . . . . . . . . . . . . . . . . . . . Reject 3 | . . . . . . . . . . . 1 . . . . 1 . 1 . . . . . . . . . . . . . . Recyclers 5 | . . . . . . . . . . . . . 2 1 . 1 . 1 . . . . . . . . . . . . . . Mask 5 | . . . . . . . . . . . 2 . 1 . . 1 . 1 . . . . . . . . . . . . . . Scanalyzers . | . . . . . . . . . . . . . . . . . . . . . . . . . . . . . . . . . Garrison Access 7 | . . . . . . . . . 1 . 3 . . 1 . 1 . 1 . . . . . . . . . . . . . . Broadcast 2 | . . . . . . . . . . . 1 . . . . 1 . . . . . . . . . . . . . . . . Restock 2 | . . . . . . . . . . . 1 . . . . . . 1 . . . . . . . . . . . . . . Eject 3 | . . . . . . . . . 1 . 1 . . 1 . . . . . . . . . . . . . . . . . . Data Cores Recovered 4 | . . . . . . . 2 . . . 1 . . . . . . . . 1 . . . . . . . . . . . . Used 2 | . . . . . . . 1 . . . 1 . . . . . . . . . . . . . . . . . . . . . Hacking Detections 167 | . 6 . 4 . . . 11 2 11 2 33 1 21 18 . 21 . 4 . 9 3 2 . 5 2 7 1 2 . 1 1 . Full Trace Events 11 | . . . . . . . . . . . 4 . 1 3 . . . 1 . . . . . . . 1 . . . 1 . . Feedback Events 1 | . . . . . . . . . . . . . . . . . . . . . . . . . . . . . . 1 . . Corruption 1 | . . . . . . . . . . . . . . . . . . . . . . . . . . . . . . 1 . . Feedback Blocked . | . . . . . . . . . . . . . . . . . . . . . . . . . . . . . . . . . Robot Schematics Acquired 10 | . 1 . . . . . 1 . . . 1 . 1 2 . 3 . . . . . . . 1 . . . . . . . . Robots Built 7 | . . . . . . . . . . . 3 . 4 . . . . . . . . . . . . . . . . . . . Authchips 5 | . . . . . . . . . . . 2 . 3 . . . . . . . . . . . . . . . . . . . Time 274 | . . . . . . . . . . . 82 . 192 . . . . . . . . . . . . . . . . . . . Total Robot Build Rating 26 | . . . . . . . . . . . 11 . 15 . . . . . . . . . . . . . . . . . . . Part Schematics Acquired 15 | . . . . . . . 2 . . . 3 . 2 . . 4 . 1 . 2 . . . 1 . . . . . . . . Parts Built 2 | . . . . . . . . . . . . . . 2 . . . . . . . . . . . . . . . . . . Authchips . | . . . . . . . . . . . . . . . . . . . . . . . . . . . . . . . . . Time 84 | . . . . . . . . . . . . . . 84 . . . . . . . . . . . . . . . . . . Total Part Build Rating 8 | . . . . . . . . . . . . . . 8 . . . . . . . . . . . . . . . . . . Parts Repaired 11 | . . . . . . . 2 . 2 . 3 . 2 . . 1 . . . 1 . . . . . . . . . . . . Time 445 | . . . . . . . 92 . 68 . 110 . 100 . . 25 . . . 50 . . . . . . . . . . . . Parts Recycled . | . . . . . . . . . . . . . . . . . . . . . . . . . . . . . . . . . Recycled Matter . | . . . . . . . . . . . . . . . . . . . . . . . . . . . . . . . . . Retrieved Matter . | . . . . . . . . . . . . . . . . . . . . . . . . . . . . . . . . . Retrieved Components 16 | . 6 . . . . . . . . . . . . 10 . . . . . . . . . . . . . . . . . . Parts Scanalyzed 11 | . . . . . . . 2 . 1 . 2 . 2 . . 1 . 2 . . . . . . . 1 . . . . . . Part Schematics Acquired 9 | . . . . . . . 2 . . . 3 . 2 . . 1 . 1 . . . . . . . . . . . . . . Parts Damaged . | . . . . . . . . . . . . . . . . . . . . . . . . . . . . . . . . . Bothacking | -11 -10 -10 -9 -9 -9 -8 -8 -8 -8 -8 -7 -7 -7 -6 -6 -6 -6 -5 -5 -4 -4 -4 -4 -4 -3 -2 -2 -2 -2 -1 -1 -1 ------------ Run | Jun Mat Min Mat Min Exi Min Mat Gar Mat Gar Fac Gar Fac Fac Was Fac Gar Fac Gar Fac Ext Cet Arc Hub Res Res Gar Res DSF Acc Gar Acc Used RIF Installer 9 | . . . . . . . . 2 . 2 . 2 . . . . 1 . 1 . . . . . . . 1 . . . . . Hotswap 1 | . . . . . . . . . . . . 1 . . . . . . . . . . . . . . . . . . . . Command Fork 1 | . . . . . . . . 1 . . . . . . . . . . . . . . . . . . . . . . . . Threat Obfuscator 1 | . . . . . . . . . . 1 . . . . . . . . . . . . . . . . . . . . . . Watcher Feeds 1 | . . . . . . . . . . . . . . . . . . . 1 . . . . . . . . . . . . . Alert ID Control 1 | . . . . . . . . . . . . . . . . . . . . . . . . . . . 1 . . . . . Structural Interface 1 | . . . . . . . . . . 1 . . . . . . . . . . . . . . . . . . . . . . Program Shield 1 | . . . . . . . . . . . . 1 . . . . . . . . . . . . . . . . . . . . Autooverride 1 | . . . . . . . . . . . . . . . . . 1 . . . . . . . . . . . . . . . Robots Hacked 63 | . . . . . . . . . 3 . 15 2 6 7 3 2 2 10 3 7 2 1 . . . . . . . . . . Non-combat 28 | . . . . . . . . . 3 . 9 . 3 4 . 1 . 4 . 4 . . . . . . . . . . . . Combat 35 | . . . . . . . . . . . 6 2 3 3 3 1 2 6 3 3 2 1 . . . . . . . . . . Autooverrided 1 | . . . . . . . . . . . . . . . . . . . 1 . . . . . . . . . . . . . Robot Hacks Applied 75 | . . . . . . . . . 6 . 20 2 8 8 5 2 3 9 2 8 1 1 . . . . . . . . . . parse_system 1 | . . . . . . . . . . . . . . . 1 . . . . . . . . . . . . . . . . . no_distress 3 | . . . . . . . . . . . 3 . . . . . . . . . . . . . . . . . . . . . find_chute 3 | . . . . . . . . . . . 2 . . 1 . . . . . . . . . . . . . . . . . . ignore_repairs 3 | . . . . . . . . . . . . . 1 1 . . . . . 1 . . . . . . . . . . . . map_walls 1 | . . . . . . . . . . . . . 1 . . . . . . . . . . . . . . . . . . . find_fabricator 1 | . . . . . . . . . . . . . . . . . . 1 . . . . . . . . . . . . . . find_recycling 1 | . . . . . . . . . . . . . . . . . . . . 1 . . . . . . . . . . . . ignore_parts 2 | . . . . . . . . . . . 2 . . . . . . . . . . . . . . . . . . . . . find_station 1 | . . . . . . . . . . . . . . 1 . . . . . . . . . . . . . . . . . . check_alert 1 | . . . . . . . . . 1 . . . . . . . . . . . . . . . . . . . . . . . purge_threat 8 | . . . . . . . . . 2 . 5 . 1 . . . . . . . . . . . . . . . . . . . ignore_targets 4 | . . . . . . . . . . . . . . . 4 . . . . . . . . . . . . . . . . . find_garrison 1 | . . . . . . . . . . . . . . . . . . . . 1 . . . . . . . . . . . . reboot_propulsion 1 | . . . . . . . . . . . . . . . . . 1 . . . . . . . . . . . . . . . overload_power 1 | . . . . . . . . . . . . . 1 . . . . . . . . . . . . . . . . . . . reboot_system 2 | . . . . . . . . . . . 1 . . . . . . . . 1 . . . . . . . . . . . . overwrite_iff 2 | . . . . . . . . . . . . . . . . . 1 1 . . . . . . . . . . . . . . formatsys_low 14 | . . . . . . . . . 3 . 2 . 1 2 . 1 . 4 . 1 . . . . . . . . . . . . formatsys_high 23 | . . . . . . . . . . . 5 2 3 3 . 1 1 3 2 3 . . . . . . . . . . . . formatsys_deep 2 | . . . . . . . . . . . . . . . . . . . . . 1 1 . . . . . . . . . . Relay Couplers Released 61 | . . . . . . . . 5 4 . 15 9 3 7 . 7 . 4 4 . . . . . . . . . . . 3 . Ejected 8 | . . . . . . . . . 4 . 3 . . 1 . . . . . . . . . . . . . . . . . . Machine Destruction 29 | . . . . . . . . 5 . . . 9 3 2 . 3 . . 4 . . . . . . . . . . . 3 . Programmers 24 | . . . . . . . . . . . 12 . . 4 . 4 . 4 . . . . . . . . . . . . . . Attached 26 | . . . . . . . . . 2 . 8 2 2 5 . 2 1 2 1 . 1 . . . . . . . . . . . Fabnet Peak Effective % 3 | . . . . . . . . . . . . . . . . . . 3 3 1 1 1 1 1 . . . . . . . . Autooverrided 3 | . . . . . . . . . . . . . . . . . . 2 . . 1 . . . . . . . . . . . Robots Rewired 11 | . . . . . . . . . . 3 . . . . . . 4 . . . 3 . . . . . . . . . . 1 Allies Hacked 10 | . . . . . . . . . . . 2 . 1 . 1 2 1 3 . . . . . . . . . . . . . . Hacks Repelled . | . . . . . . . . . . . . . . . . . . . . . . . . . . . . . . . . . Allies | -11 -10 -10 -9 -9 -9 -8 -8 -8 -8 -8 -7 -7 -7 -6 -6 -6 -6 -5 -5 -4 -4 -4 -4 -4 -3 -2 -2 -2 -2 -1 -1 -1 -------- Run | Jun Mat Min Mat Min Exi Min Mat Gar Mat Gar Fac Gar Fac Fac Was Fac Gar Fac Gar Fac Ext Cet Arc Hub Res Res Gar Res DSF Acc Gar Acc Total Allies 103 | . . . . 3 . . . . 3 3 14 2 16 7 1 8 8 13 3 5 13 3 . . . . . . . . . 1 Largest Group 16 | . . . . 3 3 3 3 . 3 6 12 9 16 16 12 15 13 10 6 4 8 7 . . . . . . . . . 1 Highest-Rated Group 387 | . . . . 40 40 40 40 . 32 127 245 158 317 365 386 387 347 310 210 160 344 318 . . . . . . . . . 219 Highest-Rated Ally 219 | . . . . 16 16 16 16 . 12 39 37 37 40 40 141 40 46 47 49 49 51 56 . . . . . . . . . 219 Total Orders 389 | . . . . . . . . . 11 15 64 20 64 85 21 52 15 23 . 10 4 5 . . . . . . . . . . STAY 194 | . . . . . . . . . 4 9 33 9 37 34 9 26 7 15 . 6 3 2 . . . . . . . . . . FOLLOW 140 | . . . . . . . . . 5 6 22 10 26 38 8 9 4 4 . 4 1 3 . . . . . . . . . . GUARD 1 | . . . . . . . . . . . . . . . . . . 1 . . . . . . . . . . . . . . AID 37 | . . . . . . . . . . . 6 . 1 13 2 11 4 . . . . . . . . . . . . . . . TUNNEL 1 | . . . . . . . . . . . . . . . . . . 1 . . . . . . . . . . . . . . DROP 7 | . . . . . . . . . 1 . 2 . . . 1 2 . 1 . . . . . . . . . . . . . . PICKUP 9 | . . . . . . . . . 1 . 1 1 . . 1 4 . 1 . . . . . . . . . . . . . . Ally Attacks 606 | . . . . 18 . . 31 . . 33 52 12 67 70 57 40 31 81 20 31 10 39 . . . . . . . . . 14 Total Damage 17032 | . . . . 187 . . 279 . . 543 1668 235 1789 2148 1920 1002 1261 911 582 1167 299 1249 . . . . . . . . . 1792 Kills 118 | . . . . 6 . . 4 . . 5 15 2 20 15 2 9 5 6 4 11 4 6 . . . . . . . . . 4 Allies Corrupted 12 | . . . . . . . . . . . 1 . 1 1 . . 4 . 1 2 2 . . . . . . . . . . . Allies Melted 1 | . . . . . . . . . . . . . . . . . . . . . 1 . . . . . . . . . . . Intel | -11 -10 -10 -9 -9 -9 -8 -8 -8 -8 -8 -7 -7 -7 -6 -6 -6 -6 -5 -5 -4 -4 -4 -4 -4 -3 -2 -2 -2 -2 -1 -1 -1 ------- Run | Jun Mat Min Mat Min Exi Min Mat Gar Mat Gar Fac Gar Fac Fac Was Fac Gar Fac Gar Fac Ext Cet Arc Hub Res Res Gar Res DSF Acc Gar Acc Robot Analysis Total 1 | . . . . . . . . . . . . . . . . . . . . . . . . . . 1 . . . . . . Derelict Logs Recovered 4 | . . 2 . 2 . . . . . . . . . . . . . . . . . . . . . . . . . . . . Drone Launches . | . . . . . . . . . . . . . . . . . . . . . . . . . . . . . . . . . Drone Recoveries . | . . . . . . . . . . . . . . . . . . . . . . . . . . . . . . . . . Exploration | -11 -10 -10 -9 -9 -9 -8 -8 -8 -8 -8 -7 -7 -7 -6 -6 -6 -6 -5 -5 -4 -4 -4 -4 -4 -3 -2 -2 -2 -2 -1 -1 -1 ------------- Run | Jun Mat Min Mat Min Exi Min Mat Gar Mat Gar Fac Gar Fac Fac Was Fac Gar Fac Gar Fac Ext Cet Arc Hub Res Res Gar Res DSF Acc Gar Acc Turns Passed 50703 | 79 1365 285 1174 670 334 131 2176 433 1784 1444 8759 1859 5490 6907 508 5554 546 1456 796 1823 794 693 961 738 1526 556 82 43 63 205 143 1326 Spaces Moved 31335 | 43 528 233 709 561 293 118 1325 238 1075 1006 5506 928 3674 4052 290 2985 248 992 402 1090 493 352 349 405 687 700 124 81 84 220 162 1382 Core 19 | 3 . . . . . . . . . . . . . . . . . . . . . . . 1 15 . . . . . . . Treads 2428 | 40 528 11 . . . . . . 2 . 1112 328 . 328 . 1 . . 1 70 . . . . 7 . . . . . . . Legs 1008 | . . . . . . . . . . . . . . 272 . 50 . . . . . 44 349 246 47 . . . . . . . Wheels 24755 | . . 222 709 561 293 118 1325 238 1073 1006 4394 600 3674 3452 290 2934 248 992 401 1020 493 308 . 158 246 . . . . . . . Hover 3125 | . . . . . . . . . . . . . . . . . . . . . . . . . 372 700 124 81 84 220 162 1382 Flight . | . . . . . . . . . . . . . . . . . . . . . . . . . . . . . . . . . Fastest Speed 33 | 50 160 110 110 110 110 110 110 110 110 110 101 145 120 101 125 108 115 115 115 105 107 124 120 105 33 48 48 48 44 36 41 41 Average Speed 120 | 152 205 116 113 110 110 110 110 110 110 111 121 166 124 136 134 126 115 115 129 133 122 149 172 139 106 50 48 48 48 40 41 54 Slowest Speed 950 | 160 240 240 125 110 110 110 125 125 240 155 230 235 160 400 140 470 115 115 400 560 129 250 190 800 950 115 48 48 115 104 41 237 Overloaded Moves . | . . . . . . . . . . . . . . . . . . . . . . . . . . . . . . . . . Propulsion Burnouts . | . . . . . . . . . . . . . . . . . . . . . . . . . . . . . . . . . Robots Hopped 1 | . . . . . . . . . . . . . . . 1 . . . . . . . . . . . . . . . . . Cave-ins Triggered 3 | . . . . . . . . . . . . . . 2 . . . . . . . . . . . . . . . . 1 . Exploration Rate (%) 50 | 4 87 46 62 99 66 27 87 28 70 70 79 85 61 59 74 63 18 13 45 28 74 84 90 31 18 23 24 2 79 6 23 29 Regions Visited 32 Branch Regions 8 Pre-discovered Areas 2 | . . . . 1 1 . . . . . . . . . . . . . . . . . . . . . . . . . . . Known Exits Taken 13 | . . 1 . . . 1 1 . 1 . 1 . 1 . . 1 . 1 . 1 . . . 1 . 1 . 1 . 1 . . Unknown Exits Taken 9 | 1 1 . 1 1 1 . . . . . . . . . . . . . . . 1 1 1 . 1 . . . . . . . Scrap Searched 2 | . . . . 1 . 1 . . . . . . . . . . . . . . . . . . . . . . . . . . Spaces Dug 529 | . . . 9 . . . 178 39 5 34 21 11 42 44 . 53 13 3 13 9 6 . . 6 4 4 6 . 5 . 10 14 Terrain Destroyed 1334 | . . . 9 . . . 270 69 5 92 57 83 142 152 1 119 52 14 33 48 45 3 7 27 13 21 6 . 5 5 17 39 Melee 43 | . . . . . . . . . . . 14 . 20 3 . . . . . . . . . 2 4 . . . . . . . Projectile 543 | . . . . . . . . 18 . 10 27 2 10 107 1 83 52 14 33 37 19 3 7 25 2 21 6 . 5 5 17 39 AOE 748 | . . . 9 . . . 270 51 5 82 16 81 112 42 . 36 . . . 11 26 . . . 7 . . . . . . . Terrain Rammed . | . . . . . . . . . . . . . . . . . . . . . . . . . . . . . . . . . Walls Destroyed . | . . . . . . . . . . . . . . . . . . . . . . . . . . . . . . . . . Machines Disabled . | . . . . . . . . . . . . . . . . . . . . . . . . . . . . . . . . . Actions | -11 -10 -10 -9 -9 -9 -8 -8 -8 -8 -8 -7 -7 -7 -6 -6 -6 -6 -5 -5 -4 -4 -4 -4 -4 -3 -2 -2 -2 -2 -1 -1 -1 --------- Run | Jun Mat Min Mat Min Exi Min Mat Gar Mat Gar Fac Gar Fac Fac Was Fac Gar Fac Gar Fac Ext Cet Arc Hub Res Res Gar Res DSF Acc Gar Acc Total 41370 | 54 685 247 955 607 305 119 1871 353 1515 1232 7194 1131 4389 5142 382 4599 426 1261 599 1340 618 467 618 518 1261 841 139 84 99 315 212 1792 Wait 6648 | . 58 7 98 39 7 2 407 58 333 84 1197 86 492 792 60 1426 119 169 89 111 37 42 189 38 337 26 13 . 5 78 15 234 Move 31298 | 42 527 232 708 560 292 117 1325 236 1074 1005 5505 927 3673 4050 287 2985 246 991 401 1089 492 351 348 404 686 699 123 80 83 219 160 1381 Hop 1 | . . . . . . . . . . . . . . . 1 . . . . . . . . . . . . . . . . . Pick Up 307 | 6 21 2 28 1 2 . 6 3 5 4 35 8 17 26 1 10 1 11 10 15 7 8 6 2 26 22 . . 2 2 5 15 Fast Attach 224 | 6 1 . 5 . . . 3 . 5 4 25 1 7 13 2 17 . 11 11 13 3 7 5 9 37 14 . 2 . 3 3 17 Attach 159 | . 2 . 4 . . . 4 1 3 2 19 2 8 17 . 8 2 8 3 9 3 5 7 9 30 2 . . 1 1 4 5 Detach 26 | . . . . . . . . . . . 5 . 1 . . 4 . 2 2 1 . . 3 2 3 . . . . . . 3 Swap 439 | . 2 2 18 2 1 . 26 8 16 14 82 19 49 48 3 18 7 10 8 18 10 13 5 9 17 16 . . 1 2 . 15 Drop 313 | . 7 3 30 2 3 . 15 2 3 . 46 6 13 22 5 14 1 15 18 15 1 11 4 . 21 23 . 2 1 1 6 23 Fire 1507 | . 63 1 64 3 . . 85 31 66 48 160 51 76 148 23 100 50 43 56 68 49 28 51 32 47 39 3 . 6 9 18 89 Melee 184 | . . . . . . . . . 6 . 48 3 53 13 . . . . . . . 2 . 2 57 . . . . . . . Ram 5 | . . . . . . . . . 1 . . . . . . . . . . . . . . 3 . . . . . . . 1 Kick 3 | . . . . . . . . . . . . . . . . . . . . . . . . 3 . . . . . . . . Crush 10 | . 4 . . . . . . . . . 2 . . 3 . . . . . 1 . . . . . . . . . . . . Escape Stasis 162 | . . . . . . . . 14 . 48 24 28 . 10 . 16 . . . . 16 . . 5 . . . . . . 1 . Rewire 42 | . . . . . . . . . 3 23 4 . . . . 1 . 1 1 . . . . . . . . . . . . 9 Trap 42 | . . . . . . . . . . . 42 . . . . . . . . . . . . . . . . . . . . . Miscellaneous . | . . . . . . . . . . . . . . . . . . . . . . . . . . . . . . . . . Route ------- -11/Junkyard -10/Materials (discovered 4 exits: *Mat x3 / [*Min]) -10/Mines -9/Materials (discovered 3 exits: *Mat x2 / *Min) -9/Mines (discovered 4 exits: *Mat x2 / *Exi / [*Zio]) -9/Exiles -8/Mines -8/Materials (discovered 4 exits: *Fac x3 / Gar) -8/Garrison (discovered 3 exits: *Mat x3) -8/Materials (discovered 3 exits: *Fac x2 / Gar) -8/Garrison (discovered 3 exits: *Fac x3) -7/Factory (discovered 8 exits: *Fac x4 / *Sto / [*Low x2] / Gar) -7/Garrison (discovered 3 exits: *Fac x3) -7/Factory (discovered 2 exits: *Fac / *Sto) -6/Factory (discovered 2 exits: *Fac / *Low) -6/Waste -6/Factory (discovered 4 exits: *Fac / *Low x2 / Gar) -6/Garrison -5/Factory -5/Garrison -4/Factory (discovered 4 exits: *Upp x2 / *Ext x2) -4/Extension (discovered 3 exits: *Res x2 / *Cet) -4/Cetus (discovered 2 exits: *Res / *Arc) -4/Archives (discovered 3 exits: *Res / *Hub x2) -4/Hub_04(d) (discovered 4 exits: *Res x4) -3/Research -2/Research (discovered 2 exits: *Tes / Gar) -2/Garrison -2/Research -2/DSF -1/Access -1/Garrison (discovered 3 exits: [*Acc x3]) -1/Access To Epsilon Eridani History --------- Turn | Location | Event 15 | -11/Junkyard | Discovered new exit (range 16) 80 | -11/Junkyard | Entered Materials 215 | -10/Materials | Discovered new exit (range 10) 300 | -10/Materials | Build established: Mutant 588 | -10/Materials | Central database locked down 617 | -10/Materials | Discovered new exit (range 16) 926 | -10/Materials | Discovered new exit (range 10) 1065 | -10/Materials | Discovered new exit (range 9) 1445 | -10/Materials | Entered Mines 1660 | -10/Mines | Identified exit to Materials 1696 | -10/Mines | Learned Materials trap positions 1700 | -10/Mines | Received a Rocket Launcher from a helpful Derelict 1730 | -10/Mines | Entered Materials 1730 | -9/Materials | Evolved 2 slots: Propulsion x1, Weapon x1 1731 | -9/Materials | Loaded intel: 11 trap records 1989 | -9/Materials | Discovered new exit (range 16) 2016 | -9/Materials | Identified exit to Materials 2037 | -9/Materials | Build established: Gunner 2199 | -9/Materials | Discovered new exit (range 16) 2638 | -9/Materials | Discovered exit to Materials (range 11) 2904 | -9/Materials | Entered Mines 2910 | -9/Mines | A Derelict revealed a hidden shortcut to a safe place 2953 | -9/Mines | Met a Derelict bent on vengeance 2975 | -9/Mines | Discovered exit to Materials (range 6) 3079 | -9/Mines | Assisted by bots powering up and referring to "LRC-V3" 3144 | -9/Mines | Learned location of Zion (-7) 3191 | -9/Mines | Found a damaged Exp. Sensor Array with a note attached 3194 | -9/Mines | Found Prototype Device 3195 | -9/Mines | Identified Exp. Sensor Array 3258 | -9/Mines | Discovered exit to Materials (range 6) 3337 | -9/Mines | Met a Derelict who couldn't figure out how to use a Trap Extractor 3501 | -9/Mines | Build established: Scavenger-Skirmisher 3561 | -9/Mines | Deemed a non-threat by the Exiles lab entrance 3561 | -9/Mines | Discovered new exit (range 5) 3574 | -9/Mines | Entered Exiles 3574 | -9/Exiles | Accompanied by 3 allies 3601 | -9/Exiles | Met 8R-AWN 3620 | -9/Exiles | Met EX-HEX 3653 | -9/Exiles | Met EX-BIN 3756 | -9/Exiles | Aligned with FarCom system 3757 | -9/Exiles | Given EX-Vault access code 3785 | -9/Exiles | Opened EX-Vault 3793 | -9/Exiles | Found Trap Reconfigurator 3815 | -9/Exiles | Warned to stay clear of 0b10 Research branches 3847 | -9/Exiles | Met EX-DEC 3892 | -9/Exiles | Discovered new exit (range 10) 3908 | -9/Exiles | Left Exiles lab with Trap Reconfigurator 3908 | -9/Exiles | Entered Mines 3908 | -8/Mines | Accompanied by 3 allies 4026 | -8/Mines | Discovered exit to Materials (range 8) 4039 | -8/Mines | Entered Materials 4039 | -8/Materials | Accompanied by 3 allies 4039 | -8/Materials | Evolved 2 slots: Utility x2 4040 | -8/Materials | Identified exit to Factory 5516 | -8/Materials | Discovered exit to Factory (range 16) 5615 | -8/Materials | Build established: Skirmisher 5915 | -8/Materials | Repaired Cooling System 5977 | -8/Materials | Repaired Adv. Beam Rifle 5997 | -8/Materials | Discovered exit to Factory (range 9) 6150 | -8/Materials | Garrison activated, responded to threat 6215 | -8/Materials | Identified exit to Garrison 6215 | -8/Materials | Entered Garrison 6260 | -8/Garrison | Triggered checkpoint 6280 | -8/Garrison | Installed Relay Interface Framework 6318 | -8/Garrison | Discovered new exit (range 84) 6318 | -8/Garrison | Discovered new exit (range 74) 6318 | -8/Garrison | Discovered new exit (range 24) 6334 | -8/Garrison | Triggered checkpoint 6376 | -8/Garrison | Garrison Relay disabled 6526 | -8/Garrison | Expanded RIF knowledge: Command Fork 6626 | -8/Garrison | Triggered checkpoint 6632 | -8/Garrison | Spotted B-75 Beast 6648 | -8/Garrison | Entered Materials 6790 | -8/Materials | Repaired Broken Ion Engine 6981 | -8/Materials | Discovered exit to Factory (range 10) 7109 | -8/Materials | Core integrity fell below 50% 8185 | -8/Materials | Repaired Particle Cannon 8292 | -8/Materials | Discovered exit to Factory (range 8) 8420 | -8/Materials | Identified exit to Garrison 8432 | -8/Materials | Entered Garrison 8432 | -8/Garrison | Accompanied by 3 allies 8447 | -8/Garrison | Expanded RIF knowledge: Structural Interface 8502 | -8/Garrison | Triggered checkpoint 8955 | -8/Garrison | Destroyed 9 combat bots 8964 | -8/Garrison | Triggered checkpoint 9119 | -8/Garrison | Discovered exit to Factory (range 12) 9177 | -8/Garrison | Lost 3 parts (1n2w) 9387 | -8/Garrison | Triggered checkpoint 9426 | -8/Garrison | Triggered checkpoint 9476 | -8/Garrison | Triggered checkpoint 9582 | -8/Garrison | Discovered exit to Factory (range 12) 9668 | -8/Garrison | Discovered exit to Factory (range 58) 9668 | -8/Garrison | Discovered exit to Factory (range 29) 9668 | -8/Garrison | Discovered exit to Factory (range 51) 9669 | -8/Garrison | Build established: Scavenger-Gunner 9759 | -8/Garrison | Expanded RIF knowledge: Threat Obfuscation 9876 | -8/Garrison | Entered Factory 9876 | -7/Factory | Accompanied by 3 allies 9876 | -7/Factory | Evolved 2 slots: Utility x2 10506 | -7/Factory | Discovered new exit (range 11) 10646 | -7/Factory | Discovered new exit (range 16) 10984 | -7/Factory | Build established: Scavenger-Mutant 11566 | -7/Factory | Build established: Scavenger-Gunner 11644 | -7/Factory | Discovered new exit (range 13) 11728 | -7/Factory | Central database locked down 11871 | -7/Factory | Lost 3 parts (1p1n1u) 11998 | -7/Factory | Discovered new exit (range 16) 12140 | -7/Factory | Build established: Commander-Mutant 12794 | -7/Factory | Discovered new exit (range 3) 13792 | -7/Factory | Discovered new exit (range 15) 13988 | -7/Factory | Repaired System Restoration Module 14016 | -7/Factory | Discovered new exit (range 14) 14087 | -7/Factory | Build established: Commander-Gunner 15218 | -7/Factory | Fabricated M-28 Smith (x1) 15263 | -7/Factory | Fabricated P-60 Hacker (x2) 15453 | -7/Factory | Build established: Commander-Mutant 15973 | -7/Factory | Identified exit to Garrison 16213 | -7/Factory | Garrison activated, responded to threat 16252 | -7/Factory | Lost 5 parts (2n1u2w) 17917 | -7/Factory | Garrison activated, responded to threat 17996 | -7/Factory | Identified exit to Storage 18402 | -7/Factory | Repaired System Restoration Module 18448 | -7/Factory | Repaired Hvy. Ion Cannon 18635 | -7/Factory | Entered Garrison 18635 | -7/Garrison | Accompanied by 8 allies 18681 | -7/Garrison | Expanded RIF knowledge: Program Shield 18791 | -7/Garrison | Triggered checkpoint 18879 | -7/Garrison | Learned Factory security intel 18982 | -7/Garrison | Destroyed 8 combat bots 19222 | -7/Garrison | Triggered checkpoint 19424 | -7/Garrison | Discovered new exit (range 11) 19473 | -7/Garrison | Build established: Commander-Gunner 19490 | -7/Garrison | Triggered checkpoint 19701 | -7/Garrison | Triggered checkpoint 19744 | -7/Garrison | Triggered checkpoint 19769 | -7/Garrison | Triggered checkpoint 19770 | -7/Garrison | Core integrity fell below 50% 19798 | -7/Garrison | Discovered new exit (range 14) 20027 | -7/Garrison | Discovered new exit (range 11) 20074 | -7/Garrison | Build established: Commander-Mutant 20092 | -7/Garrison | Expanded RIF knowledge: Hotswap 20414 | -7/Garrison | Garrison Relay disabled 20487 | -7/Garrison | Identified exit to Factory 20494 | -7/Garrison | Entered Factory 20494 | -7/Factory | Accompanied by 7 allies 20717 | -7/Factory | Build established: Bothacker-Mutant 20996 | -7/Factory | Discovered exit to Storage (range 5) 21746 | -7/Factory | Repaired Imp. Cooling System 21750 | -7/Factory | Build established: Commander-Mutant 21837 | -7/Factory | Cargo convoy interrupted 22542 | -7/Factory | Repaired KE Penetrator 24002 | -7/Factory | Garrison activated, responded to threat 24546 | -7/Factory | P-60 Hacker assimilated allied Technician 4d 25345 | -7/Factory | Fabricated M-28 Smith? 25507 | -7/Factory | Fabricated I-36 Angel? 25585 | -7/Factory | Fabricated P-60 Hacker (x2) 25658 | -7/Factory | Build established: Commander-Gunner 25883 | -7/Factory | Discovered new exit (range 16) 25932 | -7/Factory | Identified exit to Factory 25984 | -7/Factory | Entered another Factory area 25984 | -6/Factory | Accompanied by 13 allies 25984 | -6/Factory | Evolved 2 slots: Propulsion x1, Utility x1 26405 | -6/Factory | Build established: Commander-Mutant 27215 | -6/Factory | Identified exit to Garrison 28367 | -6/Factory | Build established: Commander-Gunner 28391 | -6/Factory | Garrison activated, responded to threat 28779 | -6/Factory | Garrison activated, responded to threat 29043 | -6/Factory | Crushed by falling debris 29046 | -6/Factory | Crushed by falling debris 29047 | -6/Factory | System corruption reached 10% 29077 | -6/Factory | Lost 4 parts (1n2u1w) 29400 | -6/Factory | Build established: Commander-Mutant 30298 | -6/Factory | Build established: Commander-Skirmisher 30697 | -6/Factory | Discovered new exit (range 14) 31432 | -6/Factory | Lost 3 parts (1p2n) 31808 | -6/Factory | Discovered new exit (range 16) 31840 | -6/Factory | Central database locked down 32024 | -6/Factory | Core integrity fell below 50% 32293 | -6/Factory | Build established: Commander-Mutant 32446 | -6/Factory | Fabricated System Restoration Module (x2) 32891 | -6/Factory | Sucked down chute 32891 | -6/Factory | Entered Waste 32906 | -6/Waste | EMP discharged 32939 | -6/Waste | Spotted C-40 Crusher 32954 | -6/Waste | Spotted C-40 Crusher 32993 | -6/Waste | Spotted C-40 Crusher 32994 | -6/Waste | Spotted C-40 Crusher 32995 | -6/Waste | Hacker 5a assimilated hostile C-40 Crusher 33006 | -6/Waste | EMP discharged 33010 | -6/Waste | Spotted C-40 Crusher 33013 | -6/Waste | Allies destroyed C-40 Crusher 33037 | -6/Waste | Spotted C-40 Crusher 33055 | -6/Waste | Allies destroyed C-40 Crusher 33080 | -6/Waste | 13 allies followed down the chute 33080 | -6/Waste | Destroyed C-40 Crusher 33083 | -6/Waste | Destroyed C-40 Crusher 33106 | -6/Waste | EMP discharged 33117 | -6/Waste | Destroyed C-40 Crusher 33206 | -6/Waste | EMP discharged 33306 | -6/Waste | EMP discharged 33340 | -6/Waste | Discovered new exit (range 16) 33399 | -6/Waste | Entered Factory 33399 | -6/Factory | Accompanied by 12 allies 34552 | -6/Factory | Build established: Commander-Skirmisher 35268 | -6/Factory | Discovered new exit (range 7) 35906 | -6/Factory | Build established: Commander-Mutant 36550 | -6/Factory | Identified exit to Lower Caves 36729 | -6/Factory | Build established: Commander-Skirmisher 36929 | -6/Factory | Assembled infested ambush trap array 36988 | -6/Factory | Lost 6 parts (3n2u1w) 36989 | -6/Factory | Destroyed 12 combat bots 37251 | -6/Factory | Build established: Commander-Mutant 37487 | -6/Factory | Repaired Hvy. Plasma Cannon 37678 | -6/Factory | Core integrity fell below 20% 37727 | -6/Factory | Lost 3 parts (1p1n1u) 38953 | -6/Factory | Identified exit to Garrison 38953 | -6/Factory | Entered Garrison 38953 | -6/Garrison | Accompanied by 13 allies 38994 | -6/Garrison | Expanded RIF knowledge: Autooverride 39433 | -6/Garrison | Found Damper Plating 39479 | -6/Garrison | Discovered new exit (range 11) 39499 | -6/Garrison | Entered Factory 39499 | -5/Factory | Accompanied by 5 allies 39499 | -5/Factory | Evolved 2 slots: Utility x2 40607 | -5/Factory | Build established: Bothacker-Mutant 40832 | -5/Factory | Identified exit to Garrison 40955 | -5/Factory | Entered Garrison 40955 | -5/Garrison | Accompanied by 6 allies 40973 | -5/Garrison | Expanded RIF knowledge: Watcher Feeds 41028 | -5/Garrison | Triggered checkpoint 41454 | -5/Garrison | Triggered checkpoint 41498 | -5/Garrison | Garrison Relay disabled 41692 | -5/Garrison | Discovered new exit (range 16) 41751 | -5/Garrison | Entered Factory 41751 | -4/Factory | Accompanied by 2 allies 41751 | -4/Factory | Evolved 2 slots: Power x1, Utility x1 41953 | -4/Factory | Build established: Botlord-Mutant 42010 | -4/Factory | Lost 5 parts (2n2u1w) 42322 | -4/Factory | Repaired Hvy. Plasma Cannon? 42346 | -4/Factory | Discovered new exit (range 12) 42410 | -4/Factory | Lost 3 parts (1n1u1w) 43285 | -4/Factory | Identified exit to Upper Caves 43285 | -4/Factory | Identified exit to Extension 43574 | -4/Factory | Entered Extension 43574 | -4/Extension | Accompanied by 1 ally 43650 | -4/Extension | Rescued a captive Derelict 43657 | -4/Extension | Energy Cycler disabled 43657 | -4/Extension | Rescued a captive Derelict 43658 | -4/Extension | Rescued a captive Derelict 43661 | -4/Extension | Rescued a captive Derelict 43664 | -4/Extension | Rescued a captive Derelict 43664 | -4/Extension | Rescued a captive Derelict 43666 | -4/Extension | Rescued a captive Derelict 43667 | -4/Extension | Rescued a captive Derelict 43668 | -4/Extension | Rescued a captive Derelict 43669 | -4/Extension | Rescued a captive Derelict 43688 | -4/Extension | Rescued a captive Derelict 43854 | -4/Extension | Build established: Bothacker-Gunner 43903 | -4/Extension | Lost 4 parts (1n1u2w) 43919 | -4/Extension | Assimilated ARC 7a with formatsys_deep 44035 | -4/Extension | Discovered new exit (range 22) 44039 | -4/Extension | Extracted ID and sensor layout for unrecognized location from A7's data core 44199 | -4/Extension | Build established: Scavenger-Mutant 44333 | -4/Extension | Discovered new exit (range 10) 44334 | -4/Extension | Discovered new exit (range 6) 44368 | -4/Extension | Entered Cetus 44368 | -4/Cetus | Accompanied by 7 allies 44391 | -4/Cetus | Spotted Cetus Guard 44391 | -4/Cetus | Spotted Cetus Guard 44392 | -4/Cetus | Spotted Cetus Guard 44392 | -4/Cetus | Spotted Cetus Guard 44394 | -4/Cetus | Destroyed Cetus Guard 44404 | -4/Cetus | Allies destroyed Cetus Guard 44410 | -4/Cetus | Allies destroyed Cetus Guard 44410 | -4/Cetus | Allies destroyed Cetus Guard 44600 | -4/Cetus | Assimilated ARC 7b with formatsys_deep 44736 | -4/Cetus | Discovered new exit (range 15) 44753 | -4/Cetus | Discovered new exit (range 27) 44763 | -4/Cetus | Spotted Cetus Guard 44766 | -4/Cetus | Spotted Cetus Guard 44766 | -4/Cetus | Spotted Cetus Guard 44769 | -4/Cetus | Destroyed Cetus Guard 44772 | -4/Cetus | Destroyed Cetus Guard 44772 | -4/Cetus | Destroyed Cetus Guard 44778 | -4/Cetus | Destroyed Cetus Guard 44795 | -4/Cetus | Met Revision 17 45061 | -4/Cetus | Entered Archives 45127 | -4/Archives | Build established: Scavenger-Gunner 45452 | -4/Archives | Discovered new exit (range 16) 45474 | -4/Archives | Unable to access archive contents 45535 | -4/Archives | Discovered new exit (range 14) 45821 | -4/Archives | Build established: Scavenger-Mutant 45895 | -4/Archives | Discovered new exit (range 15) 46022 | -4/Archives | Entered Hub_04(d) 46083 | -4/Hub_04(d) | Identified exit to Research 46347 | -4/Hub_04(d) | Lost 7 parts (2n2u3w) 46672 | -4/Hub_04(d) | Core integrity fell below 50% 46760 | -4/Hub_04(d) | Entered Research 46760 | -3/Research | Evolved 2 slots: Propulsion x1, Utility x1 46789 | -3/Research | Lost 16 parts (2p8n3u3w) 47070 | -3/Research | Build established: Wizard-Mutant 47745 | -3/Research | Lost 10 parts (3p3n3u1w) 47835 | -3/Research | Spotted B-86 Titan 47881 | -3/Research | Lost 3 parts (1n1u1w) 48018 | -3/Research | System corruption reached 10% 48036 | -3/Research | System corruption reached 30% 48088 | -3/Research | Lost 20 parts (3p4n8u5w) 48116 | -3/Research | Discovered new exit (range 10) 48206 | -3/Research | Core integrity fell below 50% 48236 | -3/Research | Lost 11 parts (2p4n4u1w) 48286 | -3/Research | Entered another Research area 48286 | -2/Research | Evolved 2 slots: Power x1, Utility x1 48317 | -2/Research | Build established: Scavenger-Mutant 48612 | -2/Research | Lost 3 parts (1n2u) 48696 | -2/Research | Discovered new exit (range 15) 48707 | -2/Research | Identified exit to Testing 48838 | -2/Research | Identified exit to Garrison 48842 | -2/Research | Entered Garrison 48870 | -2/Garrison | Expanded RIF knowledge: Alert ID Control 48907 | -2/Garrison | Discovered new exit (range 11) 48912 | -2/Garrison | Identified exit to Research 48924 | -2/Garrison | Entered Research 48967 | -2/Research | Identified exit to DSF 48967 | -2/Research | Entered DSF 48983 | -2/DSF | Additional patrols routed to DSF 49023 | -2/DSF | Discovered new exit (range 15) 49029 | -2/DSF | Identified exit to Access 49030 | -2/DSF | Entered Access 49030 | -1/Access | Evolved 2 slots: Propulsion x1, Utility x1 49231 | -1/Access | Identified exit to Garrison 49235 | -1/Access | Entered Garrison 49250 | -1/Garrison | Discovered new exit (range 43) 49250 | -1/Garrison | Discovered new exit (range 72) 49250 | -1/Garrison | Discovered new exit (range 56) 49254 | -1/Garrison | Triggered checkpoint 49260 | -1/Garrison | Garrison Relay disabled 49299 | -1/Garrison | Crushed by falling debris 49300 | -1/Garrison | System corruption reached 10% 49378 | -1/Garrison | Entered Access 49822 | -1/Access | Lost 8 parts (1p4n3u) 50505 | -1/Access | Spotted B-99 Colossus 50565 | -1/Access | Rewired B-99 Colossus 50567 | -1/Access | Spotted B-99 Colossus 50614 | -1/Access | Allies destroyed B-99 Colossus 50643 | -1/Access | Lost 6 parts (1p4n1u) 50668 | -1/Access | Discovered new exit (range 5) 50704 | *** | Escaped! Last Messages --------------- 50612_ Extracted 69 energy. 50612_ Slug penetrates Colossus 10a. 50612_ Imp. Antigrav System destroyed. 50613_ B-99 Colossus activates siege mode. 50614_ Slug penetrates B-99 Colossus. 50614_ B-99 Colossus destroyed. 50614_ Slug penetrates Sealed Heavy Doors. 50617_ Slug penetrates Wall. 50621_ Acquired 30 matter. 50623_ System corrupted: Substantial component data lost. 50628_ ALERT: Rogue bot located, Programmers report to Access Zone 2P. 50644_ System corrupted: Matter fused (-7). 50647_ System corrupted: Enh. Nova Cannon failed to cycle. 50647_ Sealed Heavy Doors breached. 50661_ System corrupted: Matter fused (-5). 50668_ Main Access Shell breached. 50668_ EXIT=FOUND 50679_ System corrupted: Energy discharge (-92). 50695_ >Q R